lending/lending_fUSD_20240507
["ID","MTS","AMOUNT","RATE_DAILY","PERIOD"]
[326591936,1715121047047,-500.0,0.00019452,2]
[326591938,1715121047057,-925.95,0.00019452,2]
[326591940,1715121047066,-500.0,0.00019452,2]
[326591942,1715121047076,-500.0,0.00019452,2]
[326591945,1715121047086,-500.0,0.00019452,2]
[326591946,1715121047096,-500.0,0.00019452,2]
[326591949,1715121047106,-2727.01,0.00019452,2]
[326591951,1715121047117,-500.0,0.00019452,2]
[326591953,1715121047130,-589.69,0.00019452,2]
[326591956,1715121047143,-902.98,0.00019452,2]
[326591958,1715121047155,-500.0,0.00019452,2]
[326591960,1715121047168,-556.81,0.00019452,2]
[326591963,1715121047181,-500.0,0.00019452,2]
[326591964,1715121047193,-656.33,0.00019452,2]
[326591965,1715121047203,-500.0,0.00019452,2]
[326591966,1715121047213,-500.0,0.00019452,2]
[326591967,1715121047226,-500.0,0.00019452,2]
[326591968,1715121047238,-808.96,0.00019452,2]
[326591969,1715121047249,-1765.9,0.00019452,2]
[326591970,1715121047261,-1075.26902827,0.00019625,5]
[326591971,1715121047272,-166.58519665,0.00019625,2]
[326591972,1715121047285,-163.22611039,0.00019625,2]
[326591973,1715121047296,-1000.0,0.00019626,2]
[326591974,1715121047307,-245000.0,0.00019626,2]
[326591976,1715121047320,-1004.96639112,0.00019685,2]
[326591978,1715121047333,-527.90744092,0.00019725,2]
[326591980,1715121047345,-179.25,0.00019725,2]
[326591982,1715121047357,-458.49,0.00019725,2]
[326591985,1715121047367,-340.9,0.00019725,2]
[326591987,1715121047379,-396.68,0.00019725,2]
[326591989,1715121047390,-165.98,0.00019725,2]
[326591991,1715121047402,-325.96,0.00019725,2]
[326591994,1715121047415,-500.0,0.00019725,2]
[326591996,1715121047429,-548.03799969,0.00019725,2]
[326591998,1715121047440,-285.17,0.00019725,2]
[326592000,1715121047451,-500.0,0.00019725,2]
[326592002,1715121047463,-160.1,0.00019725,2]
[326592005,1715121047474,-500.0,0.00019725,2]
[326592007,1715121047484,-500.0,0.00019725,2]
[326592009,1715121047497,-163.69,0.00019725,2]
[326592011,1715121047508,-166.96,0.00019725,2]
[326592013,1715121047520,-500.0,0.00019725,2]
[326592016,1715121047532,-495.1,0.00019725,2]
[326592018,1715121047544,-500.0,0.00019725,2]
[326592020,1715121047556,-548.44,0.00019725,2]
[326592022,1715121047567,-500.0,0.00019725,2]
[326592025,1715121047579,-500.0,0.00019725,2]
[326592027,1715121047591,-500.0,0.00019725,2]
[326592029,1715121047603,-500.0,0.00019725,2]
[326592032,1715121047615,-500.0,0.00019725,2]
[326592034,1715121047627,-500.0,0.00019725,2]
[326592036,1715121047637,-613.44,0.00019725,2]
[326592038,1715121047647,-500.0,0.00019725,2]
[326592040,1715121047657,-486.38,0.00019725,2]
[326592042,1715121047667,-159.5,0.00019725,2]
[326592043,1715121047678,-214.52,0.00019725,2]
[326592044,1715121047690,-500.0,0.00019725,2]
[326592045,1715121047701,-500.0,0.00019725,2]
[326592046,1715121047713,-500.0,0.00019725,2]
[326592047,1715121047725,-500.0,0.00019725,2]
[326592048,1715121047735,-500.0,0.00019725,2]
[326592049,1715121047745,-500.0,0.00019725,2]
[326592050,1715121047756,-500.0,0.00019725,2]
[326592051,1715121047767,-480.25,0.00019725,2]
[326592052,1715121047778,-500.0,0.00019725,2]
[326592053,1715121047790,-432.18,0.00019725,2]
[326592054,1715121047801,-500.0,0.00019725,2]
[326592055,1715121047811,-500.0,0.00019725,2]
[326592056,1715121047822,-253.06,0.00019725,2]
[326592057,1715121047832,-892.44,0.00019725,2]
[326592058,1715121047842,-500.0,0.00019725,2]
[326592059,1715121047853,-185.34,0.00019725,2]
[326592060,1715121047863,-500.0,0.00019725,2]
[326592061,1715121047874,-500.0,0.00019725,2]
[326592062,1715121047884,-507.42550479,0.00019725,2]
[326592063,1715121047895,-239.71,0.00019725,2]
[326592064,1715121047906,-500.0,0.00019725,2]
[326592065,1715121047916,-500.0,0.00019725,2]
[326592066,1715121047927,-500.0,0.00019725,2]
[326592067,1715121047938,-500.0,0.00019725,2]
[326592068,1715121047948,-500.0,0.00019725,2]
[326592069,1715121047959,-281.41,0.00019725,2]
[326592070,1715121047970,-500.0,0.00019725,2]
[326592071,1715121047980,-500.0,0.00019725,2]
[326592072,1715121047991,-357.38,0.00019725,2]
[326592073,1715121048001,-500.0,0.00019725,2]
[326592074,1715121048013,-469.5,0.00019725,2]
[326592075,1715121048023,-500.0,0.00019725,2]
[326592076,1715121048034,-500.0,0.00019725,2]
[326592077,1715121048044,-500.0,0.00019725,2]
[326592078,1715121048055,-500.0,0.00019725,2]
[326592079,1715121048066,-500.0,0.00019725,2]
[326592080,1715121048076,-542.64,0.00019725,2]
[326592081,1715121048087,-500.0,0.00019725,2]
[326592082,1715121048101,-500.0,0.00019725,2]
[326592083,1715121048111,-500.0,0.00019725,2]
[326592084,1715121048122,-569.2993399,0.00019725,2]
[326592085,1715121048132,-500.0,0.00019725,2]
[326592086,1715121048143,-280.04,0.00019725,2]
[326592087,1715121048154,-164.02,0.00019725,2]
[326592088,1715121048164,-489.35,0.00019725,2]
[326592089,1715121048175,-500.0,0.00019725,2]
[326592090,1715121048186,-500.0,0.00019725,2]
[326592091,1715121048197,-500.0,0.00019725,2]
[326592092,1715121048208,-415.29,0.00019725,2]
[326592093,1715121048218,-500.0,0.00019725,2]
[326592094,1715121048229,-500.0,0.00019725,2]
[326592095,1715121048239,-605.89,0.00019725,2]
[326592096,1715121048250,-327.56,0.00019725,2]
[326592097,1715121048260,-920.03,0.00019725,2]
[326592098,1715121048271,-500.0,0.00019725,2]
[326592099,1715121048281,-3553.82,0.00019725,2]
[326592100,1715121048291,-500.0,0.00019726,2]
[326592101,1715121048303,-500.0,0.00019726,2]
[326592102,1715121048313,-500.0,0.00019726,2]
[326592103,1715121048324,-374.9,0.00019726,2]
[326592104,1715121048335,-500.0,0.00019726,2]
[326592105,1715121048346,-500.0,0.00019726,2]
[326592106,1715121048356,-500.0,0.00019726,2]
[326592107,1715121048366,-500.0,0.00019726,2]
[326592108,1715121048377,-500.0,0.00019726,2]
[326592109,1715121048387,-500.0,0.00019726,2]
[326592110,1715121048398,-500.0,0.00019726,2]
[326592111,1715121048408,-500.0,0.00019726,2]
[326592112,1715121048424,-500.0,0.00019726,2]
[326592113,1715121048436,-500.0,0.00019726,2]
[326592114,1715121048447,-500.0,0.00019726,2]
[326592115,1715121048459,-500.0,0.00019726,2]
[326592116,1715121048469,-500.0,0.00019726,2]
[326592117,1715121048479,-500.0,0.00019726,2]
[326592118,1715121048490,-500.0,0.00019726,2]
[326592119,1715121048503,-328.77,0.00019726,2]
[326592120,1715121048514,-500.0,0.00019726,2]
[326592121,1715121048525,-226.08926606,0.00019726,2]
[326592122,1715121048535,-500.0,0.00019726,2]
[326592123,1715121048545,-500.0,0.00019726,2]
[326592124,1715121048556,-500.0,0.00019726,2]
[326592125,1715121048567,-500.0,0.00019726,2]
[326592126,1715121048577,-500.0,0.00019726,2]
[326592127,1715121048587,-646.07,0.00019726,2]
[326592128,1715121048598,-500.0,0.00019726,2]
[326592129,1715121048608,-500.0,0.00019726,2]
[326592130,1715121048619,-500.0,0.00019726,2]
[326592131,1715121048629,-500.0,0.00019726,2]
[326592132,1715121048640,-500.0,0.00019726,2]
[326592133,1715121048651,-500.0,0.00019726,2]
[326592134,1715121048662,-500.0,0.00019726,2]
[326592135,1715121048672,-500.0,0.00019726,2]
[326592136,1715121048683,-666.66,0.00019726,2]
[326592137,1715121048694,-500.0,0.00019726,2]
[326592138,1715121048704,-500.0,0.00019726,2]
[326592139,1715121048715,-597.27517309,0.00019726,2]
[326592140,1715121048725,-500.0,0.00019726,2]
[326592141,1715121048736,-500.0,0.00019726,2]
[326592142,1715121048747,-500.0,0.00019726,2]
[326592143,1715121048758,-500.0,0.00019726,2]
[326592144,1715121048768,-500.0,0.00019726,2]
[326592145,1715121048779,-500.0,0.00019726,2]
[326592146,1715121048790,-500.0,0.00019726,2]
[326592147,1715121048800,-150.0,0.00019726,2]
[326592148,1715121048811,-500.0,0.00019726,2]
[326592149,1715121048822,-555.88,0.00019726,2]
[326592150,1715121048832,-500.0,0.00019726,2]
[326592151,1715121048843,-500.0,0.00019726,2]
[326592152,1715121048854,-500.0,0.00019726,2]
[326592153,1715121048864,-500.0,0.00019726,2]
[326592154,1715121048875,-500.0,0.00019726,2]
[326592155,1715121048886,-500.0,0.00019726,2]
[326592156,1715121048897,-500.0,0.00019726,2]
[326592157,1715121048908,-500.0,0.00019726,2]
[326592158,1715121048918,-500.0,0.00019726,2]
[326592159,1715121048928,-500.0,0.00019726,2]
[326592160,1715121048939,-242.63,0.00019726,2]
[326592161,1715121048950,-500.0,0.00019726,2]
[326592162,1715121048960,-500.0,0.00019726,2]
[326592163,1715121048970,-500.0,0.00019726,2]
[326592164,1715121048980,-500.0,0.00019726,2]
[326592165,1715121048991,-500.0,0.00019726,2]
[326592166,1715121049002,-500.0,0.00019726,2]
[326592167,1715121049012,-500.0,0.00019726,2]
[326592168,1715121049022,-500.0,0.00019726,2]
[326592169,1715121049033,-500.0,0.00019726,2]
[326592170,1715121049044,-500.0,0.00019726,2]
[326592171,1715121049055,-899.64,0.00019726,2]
[326592172,1715121049265,-500.0,0.00019726,2]
[326592173,1715121049281,-1730.35,0.00019726,2]
[326592174,1715121049290,-500.0,0.00019726,2]
[326592175,1715121049300,-1244.08,0.00019726,2]
[326592176,1715121049309,-500.0,0.00019726,2]
[326592177,1715121049319,-500.0,0.00019726,2]
[326592178,1715121049328,-229.5,0.00019726,2]
[326592179,1715121049338,-500.0,0.00019726,2]
[326592180,1715121049347,-500.0,0.00019726,2]
[326592181,1715121049356,-500.0,0.00019726,2]
[326592182,1715121049365,-799.88,0.00019726,2]
[326592183,1715121049375,-500.0,0.00019726,2]
[326592184,1715121049384,-568.92,0.00019726,2]
[326592185,1715121049394,-500.0,0.00019726,2]
[326592186,1715121049403,-500.0,0.00019726,2]
[326592187,1715121049416,-672.9,0.00019726,2]
[326592188,1715121049427,-500.0,0.00019726,2]
[326592189,1715121049436,-500.0,0.00019726,2]
[326592190,1715121049446,-500.0,0.00019726,2]
[326592191,1715121049456,-2011.2,0.00019726,2]
[326592192,1715121049468,-500.0,0.00019726,2]
[326592193,1715121049478,-258.11,0.00019726,2]
[326592194,1715121049487,-500.0,0.00019726,2]
[326592195,1715121049497,-500.0,0.00019726,2]
[326592196,1715121049507,-589.59,0.00019726,2]
[326592197,1715121049516,-178.41675866,0.00019726,2]
[326592198,1715121049526,-500.0,0.00019726,2]
[326592199,1715121049536,-500.0,0.00019726,2]
[326592200,1715121049546,-500.0,0.00019726,2]
[326592201,1715121049555,-637.08,0.00019726,2]
[326592202,1715121049564,-2660.28,0.00019726,2]
[326592203,1715121049574,-500.0,0.00019726,2]
[326592204,1715121049583,-799.11,0.00019726,2]
[326592205,1715121049592,-500.0,0.00019726,2]
[326592206,1715121049601,-500.0,0.00019726,2]
[326592207,1715121049611,-500.0,0.00019726,2]
[326592208,1715121049620,-500.0,0.00019726,2]
[326592209,1715121049630,-157.16,0.00019726,2]
[326592210,1715121049639,-500.0,0.00019726,2]
[326592211,1715121049648,-500.0,0.00019726,2]
[326592212,1715121049658,-500.0,0.00019726,2]
[326592213,1715121049667,-500.0,0.00019726,2]
[326592214,1715121049676,-500.0,0.00019726,2]
[326592215,1715121049686,-4975.18,0.00019726,2]
[326592216,1715121049695,-500.0,0.00019726,2]
[326592217,1715121049704,-500.0,0.00019726,2]
[326592218,1715121049713,-500.0,0.00019726,2]
[326592219,1715121049722,-252.57,0.00019726,2]
[326592220,1715121049731,-500.0,0.00019726,2]
[326592221,1715121049740,-500.0,0.00019726,2]
[326592222,1715121049750,-731.55,0.00019726,2]
[326592223,1715121049759,-799.52,0.00019726,2]
[326592224,1715121049768,-500.0,0.00019726,2]
[326592225,1715121049778,-500.0,0.00019726,2]
[326592226,1715121049787,-500.0,0.00019726,2]
[326592227,1715121049796,-162.07764435,0.00019726,2]
[326592228,1715121049806,-500.0,0.00019726,2]
[326592229,1715121049815,-500.0,0.00019726,2]
[326592230,1715121049824,-500.0,0.00019726,2]
[326592231,1715121049833,-500.0,0.00019726,2]
[326592232,1715121049843,-349.78,0.00019726,2]
[326592233,1715121049852,-500.0,0.00019726,2]
[326592234,1715121049862,-500.0,0.00019726,2]
[326592235,1715121049871,-606.61,0.00019726,2]
[326592236,1715121049880,-500.0,0.00019726,2]
[326592237,1715121049890,-252.20957319,0.00019726,2]
[326592238,1715121049899,-500.0,0.00019726,2]
[326592239,1715121049909,-500.0,0.00019726,2]
[326592240,1715121049918,-500.0,0.00019726,2]
[326592241,1715121049927,-500.0,0.00019726,2]
[326592242,1715121049936,-500.0,0.00019726,2]
[326592243,1715121049945,-500.0,0.00019726,2]
[326592244,1715121049955,-512.55,0.00019726,2]
[326592245,1715121049964,-1590.66,0.00019726,2]
[326592246,1715121049974,-500.0,0.00019726,2]
[326592247,1715121049983,-500.0,0.00019726,2]
[326592248,1715121049992,-739.97,0.00019726,2]
[326592249,1715121050002,-500.0,0.00019726,2]
[326592250,1715121050011,-500.0,0.00019726,2]
[326592251,1715121050020,-500.0,0.00019726,2]
[326592252,1715121050030,-500.0,0.00019726,2]
[326592253,1715121050040,-830.23,0.00019726,2]
[326592254,1715121050049,-500.0,0.00019726,2]
[326592255,1715121050058,-500.0,0.00019726,2]
[326592256,1715121050067,-500.0,0.00019726,2]
[326592257,1715121050077,-500.0,0.00019726,2]
[326592258,1715121050086,-500.0,0.00019726,2]
[326592259,1715121050096,-500.0,0.00019726,2]
[326592260,1715121050105,-500.0,0.00019726,2]
[326592261,1715121050114,-500.0,0.00019726,2]
[326592262,1715121050123,-500.0,0.00019726,2]
[326592263,1715121050132,-500.0,0.00019726,2]
[326592264,1715121050142,-991.88,0.00019726,2]
[326592265,1715121050152,-650.04,0.00019726,2]
[326592266,1715121050162,-500.0,0.00019726,2]
[326592267,1715121050171,-500.0,0.00019726,2]
[326592268,1715121050180,-828.79,0.00019726,2]
[326592269,1715121050190,-500.0,0.00019726,2]
[326592270,1715121050200,-500.0,0.00019726,2]
[326592271,1715121050209,-500.0,0.00019726,2]
[326592272,1715121050219,-925.95,0.00019726,2]
[326592273,1715121050228,-500.0,0.00019726,2]
[326592274,1715121050237,-500.0,0.00019726,2]
[326592275,1715121050249,-500.0,0.00019726,2]
[326592276,1715121050259,-500.0,0.00019726,2]
[326592277,1715121050268,-2727.01,0.00019726,2]
[326592278,1715121050278,-500.0,0.00019726,2]
[326592279,1715121050287,-589.69,0.00019726,2]
[326592280,1715121050296,-902.98,0.00019726,2]
[326592281,1715121050306,-500.0,0.00019726,2]
[326592282,1715121050316,-556.81,0.00019726,2]
[326592283,1715121050327,-500.0,0.00019726,2]
[326592284,1715121050337,-656.33,0.00019726,2]
[326592285,1715121050347,-449.94600562,0.00019726,2]
[326592286,1715121050356,-500.0,0.00019726,2]
[326592287,1715121050367,-500.0,0.00019726,2]
[326592288,1715121050376,-808.96,0.00019726,2]
[326592289,1715121050386,-177.59203008,0.00019999,2]
[326592290,1715121050395,-500.0,0.00019999,2]
[326592291,1715121050405,-500.0,0.00019999,2]
[326592292,1715121050416,-500.0,0.00019999,2]
[326592293,1715121050425,-617.76,0.00019999,2]
[326592294,1715121050436,-500.0,0.00019999,2]
[326592295,1715121050445,-500.0,0.00019999,2]
[326592296,1715121050455,-500.0,0.00019999,2]
[326592297,1715121050464,-500.0,0.00019999,2]
[326592298,1715121050474,-500.0,0.00019999,2]
[326592299,1715121050483,-500.0,0.00019999,2]
[326592300,1715121050492,-500.0,0.00019999,2]
[326592301,1715121050504,-646.4404551,0.00019999,2]
[326592302,1715121050515,-500.0,0.00019999,2]
[326592303,1715121050524,-500.0,0.00019999,2]
[326592304,1715121050533,-500.0,0.00019999,2]
[326592305,1715121050543,-359.1,0.00019999,2]
[326592306,1715121050552,-500.0,0.00019999,2]
[326592307,1715121050562,-500.0,0.00019999,2]
[326592308,1715121050571,-500.0,0.00019999,2]
[326592309,1715121050580,-892.44,0.00019999,2]
[326592310,1715121050590,-500.0,0.00019999,2]
[326592311,1715121050600,-404.94,0.00019999,2]
[326592312,1715121050609,-500.0,0.00019999,2]
[326592313,1715121050618,-288.06,0.00019999,2]
[326592314,1715121050627,-357.62,0.00019999,2]
[326592315,1715121050637,-500.0,0.00019999,2]
[326592316,1715121050647,-500.0,0.00019999,2]
[326592317,1715121050656,-500.0,0.00019999,2]
[326592318,1715121050666,-500.0,0.00019999,2]
[326592319,1715121050675,-500.0,0.00019999,2]
[326592320,1715121050686,-500.0,0.00019999,2]
[326592321,1715121050696,-500.0,0.00019999,2]
[326592322,1715121050705,-500.0,0.00019999,2]
[326592323,1715121050714,-471.83,0.00019999,2]
[326592324,1715121050724,-500.0,0.00019999,2]
[326592325,1715121050733,-500.0,0.00019999,2]
[326592326,1715121050743,-500.0,0.00019999,2]
[326592327,1715121050752,-500.0,0.00019999,2]
[326592328,1715121050761,-500.0,0.00019999,2]
[326592329,1715121050770,-500.0,0.00019999,2]
[326592330,1715121050779,-500.0,0.00019999,2]
[326592331,1715121050789,-500.0,0.00019999,2]
[326592332,1715121050798,-920.03,0.00019999,2]
[326592333,1715121050807,-516.7,0.00019999,2]
[326592334,1715121050816,-3553.82,0.00019999,2]
[326592335,1715121050826,-800.0,0.0002,3]
[326592336,1715121050835,-155.3230069,0.0002,2]
[326592337,1715121050845,-6213.40373582,0.0002,2]
[326592338,1715121050854,-573.13124595,0.0002,2]
[326592339,1715121050864,-548.11,0.0002,2]
[326592340,1715121050873,-500.0,0.0002,2]
[326592341,1715121050882,-531.68,0.0002,2]
[326592342,1715121050892,-500.0,0.0002,2]
[326592343,1715121050901,-500.0,0.0002,2]
[326592344,1715121050911,-500.0,0.0002,2]
[326592345,1715121050920,-386.54,0.0002,2]
[326592346,1715121050929,-251.83,0.0002,2]
[326592347,1715121050938,-500.0,0.0002,2]
[326592348,1715121050948,-500.0,0.0002,2]
[326592349,1715121050958,-272.05762425,0.0002,2]
[326592350,1715121050968,-634.22,0.0002,2]
[326592351,1715121050977,-500.0,0.0002,2]
[326592352,1715121050987,-500.0,0.0002,2]
[326592353,1715121050996,-500.0,0.0002,2]
[326592354,1715121051006,-500.0,0.0002,2]
[326592355,1715121051016,-584.82736509,0.0002,2]
[326592356,1715121051026,-500.0,0.0002,2]
[326592357,1715121051035,-500.0,0.0002,2]
[326592358,1715121051044,-500.0,0.0002,2]
[326592359,1715121051053,-500.0,0.0002,2]
[326592360,1715121051062,-500.0,0.0002,2]
[326592361,1715121051072,-500.0,0.0002,2]
[326592362,1715121051081,-500.0,0.0002,2]
[326592363,1715121051090,-500.0,0.0002,2]
[326592364,1715121051102,-500.0,0.0002,2]
[326592365,1715121051112,-500.0,0.0002,2]
[326592366,1715121051121,-166.92228863,0.0002,2]
[326592367,1715121051130,-293.26,0.0002,2]
[326592368,1715121051140,-500.0,0.0002,2]
[326592369,1715121051149,-190.54,0.0002,2]
[326592370,1715121051158,-666.66,0.0002,2]
[326592371,1715121051168,-500.0,0.0002,2]
[326592372,1715121051177,-500.0,0.0002,2]
[326592373,1715121051188,-302.83,0.0002,2]
[326592374,1715121051198,-500.0,0.0002,2]
[326592375,1715121051208,-544.6,0.0002,2]
[326592376,1715121051217,-500.0,0.0002,2]
[326592377,1715121051227,-500.0,0.0002,2]
[326592378,1715121051236,-500.0,0.0002,2]
[326592379,1715121051246,-500.0,0.0002,2]
[326592380,1715121051255,-150.0,0.0002,2]
[326592381,1715121051264,-228.39196208,0.0002,2]
[326592382,1715121051274,-500.0,0.0002,2]
[326592383,1715121051283,-500.0,0.0002,2]
[326592384,1715121051293,-500.0,0.0002,2]
[326592385,1715121051302,-500.0,0.0002,2]
[326592386,1715121051311,-500.0,0.0002,2]
[326592387,1715121051320,-500.0,0.0002,2]
[326592388,1715121051329,-500.0,0.0002,2]
[326592389,1715121051339,-500.0,0.0002,2]
[326592390,1715121051348,-500.0,0.0002,2]
[326592391,1715121051358,-500.0,0.0002,2]
[326592392,1715121051367,-500.0,0.0002,2]
[326592393,1715121051377,-500.0,0.0002,2]
[326592394,1715121051386,-500.0,0.0002,2]
[326592395,1715121051395,-500.0,0.0002,2]
[326592396,1715121051404,-500.0,0.0002,2]
[326592397,1715121051417,-500.0,0.0002,2]
[326592398,1715121051426,-500.0,0.0002,2]
[326592399,1715121051438,-500.0,0.0002,2]
[326592400,1715121051447,-500.0,0.0002,2]
[326592401,1715121051458,-500.0,0.0002,2]
[326592402,1715121051468,-899.64,0.0002,2]
[326592403,1715121051477,-500.0,0.0002,2]
[326592404,1715121051487,-1730.35,0.0002,2]
[326592405,1715121051498,-1244.08,0.0002,2]
[326592406,1715121051508,-500.0,0.0002,2]
[326592407,1715121051518,-500.0,0.0002,2]
[326592408,1715121051527,-301.93,0.0002,2]
[326592409,1715121051537,-500.0,0.0002,2]
[326592410,1715121051546,-500.0,0.0002,2]
[326592411,1715121051556,-799.88,0.0002,2]
[326592412,1715121051566,-369.06,0.0002,2]
[326592413,1715121051575,-568.92,0.0002,2]
[326592414,1715121051584,-500.0,0.0002,2]
[326592415,1715121051594,-500.0,0.0002,2]
[326592416,1715121051604,-672.9,0.0002,2]
[326592417,1715121051613,-500.0,0.0002,2]
[326592418,1715121051623,-500.0,0.0002,2]
[326592419,1715121051633,-500.0,0.0002,2]
[326592420,1715121051642,-2011.2,0.0002,2]
[326592421,1715121051652,-500.0,0.0002,2]
[326592422,1715121051661,-500.0,0.0002,2]
[326592423,1715121051671,-500.0,0.0002,2]
[326592424,1715121051681,-500.0,0.0002,2]
[326592425,1715121051693,-500.0,0.0002,2]
[326592426,1715121051702,-500.0,0.0002,2]
[326592427,1715121051711,-637.08,0.0002,2]
[326592428,1715121051720,-2660.28,0.0002,2]
[326592429,1715121051730,-261.46,0.0002,2]
[326592430,1715121051740,-799.11,0.0002,2]
[326592431,1715121051749,-355.91014242,0.0002,2]
[326592432,1715121051758,-500.0,0.0002,2]
[326592433,1715121051768,-500.0,0.0002,2]
[326592434,1715121051777,-500.0,0.0002,2]
[326592435,1715121051787,-500.0,0.0002,2]
[326592436,1715121051796,-500.0,0.0002,2]
[326592437,1715121051806,-500.0,0.0002,2]
[326592438,1715121051815,-500.0,0.0002,2]
[326592439,1715121051825,-500.0,0.0002,2]
[326592440,1715121051835,-4975.18,0.0002,2]
[326592441,1715121051844,-500.0,0.0002,2]
[326592442,1715121051854,-500.0,0.0002,2]
[326592443,1715121051864,-500.0,0.0002,2]
[326592444,1715121051874,-500.0,0.0002,2]
[326592445,1715121051883,-500.0,0.0002,2]
[326592446,1715121051894,-731.55,0.0002,2]
[326592447,1715121051903,-799.52,0.0002,2]
[326592448,1715121051912,-500.0,0.0002,2]
[326592449,1715121051922,-500.0,0.0002,2]
[326592450,1715121051934,-500.0,0.0002,2]
[326592451,1715121051945,-500.0,0.0002,2]
[326592452,1715121051954,-500.0,0.0002,2]
[326592453,1715121051963,-500.0,0.0002,2]
[326592454,1715121051973,-500.0,0.0002,2]
[326592455,1715121051982,-500.0,0.0002,2]
[326592456,1715121051991,-500.0,0.0002,2]
[326592457,1715121052001,-606.61,0.0002,2]
[326592458,1715121052010,-500.0,0.0002,2]
[326592459,1715121052019,-500.0,0.0002,2]
[326592460,1715121052029,-192.04,0.0002,2]
[326592461,1715121052038,-500.0,0.0002,2]
[326592462,1715121052047,-500.0,0.0002,2]
[326592463,1715121052057,-500.0,0.0002,2]
[326592464,1715121052066,-500.0,0.0002,2]
[326592465,1715121052075,-512.55,0.0002,2]
[326592466,1715121052085,-1590.66,0.0002,2]
[326592467,1715121052096,-500.0,0.0002,2]
[326592468,1715121052106,-500.0,0.0002,2]
[326592469,1715121052115,-739.97,0.0002,2]
[326592470,1715121052124,-500.0,0.0002,2]
[326592471,1715121052133,-500.0,0.0002,2]
[326592472,1715121052143,-500.0,0.0002,2]
[326592473,1715121052152,-500.0,0.0002,2]
[326592474,1715121052161,-830.23,0.0002,2]
[326592475,1715121052171,-500.0,0.0002,2]
[326592476,1715121052183,-500.0,0.0002,2]
[326592477,1715121052193,-500.0,0.0002,2]
[326592478,1715121052202,-500.0,0.0002,2]
[326592479,1715121052211,-500.0,0.0002,2]
[326592480,1715121052220,-500.0,0.0002,2]
[326592481,1715121052230,-500.0,0.0002,2]
[326592482,1715121052239,-380.09,0.0002,2]
[326592483,1715121052248,-500.0,0.0002,2]
[326592484,1715121052257,-500.0,0.0002,2]
[326592485,1715121052267,-991.88,0.0002,2]
[326592486,1715121052277,-650.04,0.0002,2]
[326592487,1715121052286,-520.18,0.0002,2]